Cogmind - Beta 11 @@@ ROGUE MODE // 2022.04.20 @ 17:24:23 // Winter2019/RPGLIKE Player: Kiks Result: Self-destructed Performance ------------- Evolutions (1) 500 Regions Visited (3) 600 Robots Destroyed (33) 165 Value Destroyed (850) 850 Prototype IDs (0) 0 Alien Tech Used (0) 0 Bonus (38) 38 TOTAL SCORE: 2153 Bonus ------- High Alert Combat Kills 38 Cogmind --------- Core Integrity 90/600 Matter 300/300 Energy 100/100 System Corruption 0% Temperature Cool (0) Movement Core (50) Location -9/Materials Parts ------- > --- POWER (1) -------- (None) > --- PROPULSION (3) --- (None) > --- UTILITY (3) ------ Improved Heat Sink Targeting Computer > --- WEAPON (2) ------- (None) > --- INVENTORY (3) ---- Protomatter-27 Improved Hover Unit Light Assault Rifle Peak State ------------ > --- POWER ------------ Light Nuclear Core > --- PROPULSION ------- Flight Unit Flight Unit > --- UTILITY ---------- Improved Heat Sink Targeting Computer > --- WEAPON ----------- Small Laser Small Laser > --- INVENTORY -------- Protomatter Light Ion Engine [Rating: 11] Favorites ----------- Power Light Nuclear Core Engine Ion Engine Power Core Light Nuclear Core Propulsion Flight Unit Leg Aluminum Leg Flight Unit Flight Unit Utility Targeting Computer Device Improved Heat Sink Processor Targeting Computer Weapon Mining Claw Energy Gun Small Laser Special Weapon Welding Torch Slashing Weapon Mining Claw Build | -11 -10 -10 -9 ------- Run | Scr Mat Min Mat Slots Evolved 5 | 3 . . 2 Power . | . . . . Propulsion 2 | 1 . . 1 Utility 2 | 1 . . 1 Weapon 1 | 1 . . . Parts Attached 17 | 5 6 1 5 Power 4 | 1 1 . 2 Engine 2 | 1 . . 1 Core 2 | . 1 . 1 Reactor . | . . . . Propulsion 7 | 2 2 . 3 Treads . | . . . . Leg 2 | 2 . . . Wheel . | . . . . Hover . | . . . . Flight 5 | . 2 . 3 Utility 2 | . 2 . . Device 1 | . 1 . . Storage . | . . . . Processor 1 | . 1 . . Hackware . | . . . . Protection . | . . . . Artifact . | . . . . Weapon 4 | 2 1 1 . Energy Gun 2 | 2 . . . Energy Cannon . | . . . . Ballistic Gun . | . . . . Ballistic Cannon . | . . . . Launcher . | . . . . Special Weapon 1 | . . 1 . Impact Weapon . | . . . . Slashing Weapon 1 | . 1 . . Piercing Weapon . | . . . . Special Melee Weapon . | . . . . Unidentified Prototypes . | . . . . Parts Lost 6 | . . . 6 Power 2 | . . . 2 Propulsion 3 | . . . 3 Utility . | . . . . Weapon 1 | . . . 1 Highest Loss Streak 3 | . . . 3 To Critical Strikes . | . . . . Average Slot Usage (%) 78 | . 85 85 62 Engine 3 | . 5 . 2 Core 9 | . 8 14 6 Leg 4 | . 10 . . Flight 20 | . 17 28 19 Device 10 | . 8 14 11 Processor 11 | . 10 14 11 Energy Gun 7 | . 18 . . Slashing Weapon 9 | . 4 14 11 Naked Turns . | . . . . Heaviest Build 8 | 7 8 8 8 Greatest Support 20 | 20 20 8 12 Greatest Overweight (x) 1 | . . . 1 Average Overweight (x) . | . . . . Largest Inventory Capacity 3 | 3 3 3 3 Average Capacity 2 | 2 3 3 3 Most Carried 3 | 1 3 3 3 Average Carried 2 | . 2 3 1 Final Capacity 3 | 3 3 3 3 Final Carried 3 | 1 3 3 3 Class Distribution -------------------- 68% | Scavenger-Mutant 31% | Mutant Dominant Class ---------------- Scavenger-Mutant | -10/Materials Scavenger-Mutant | -10/Mines Scavenger-Mutant | -9/Materials Resources | -11 -10 -10 -9 ----------- Run | Scr Mat Min Mat Matter Collected 360 | 209 101 10 40 Remotely . | . . . . Salvage Created 1052 | . 404 107 541 Parts 68 | . 21 6 41 Haulers Intercepted 2 | . 1 . 1 Recyclers Shooed 1 | . . . 1 Parts Field Recycled . | . . . . Retrieved Matter . | . . . . Parts Self-Destructed . | . . . . Prevented . | . . . . Kills | -11 -10 -10 -9 ------- Run | Scr Mat Min Mat Combat Hostiles Destroyed 29 | . 10 5 14 Melee 21 | . 2 5 14 Guns 8 | . 8 . . Classes Destroyed 10 | . 6 2 2 Worker 2 | . . 1 1 Builder 2 | . 1 . 1 Hauler 2 | . 1 . 1 Operator 1 | . 1 . . Watcher 1 | . 1 . . Swarmer 6 | . 3 1 2 Grunt 14 | . 7 . 7 Duelist 1 | . . . 1 Sentry 4 | . . . 4 Assembled 4 | . . 4 . Best Kill Streak 5 | . 4 2 5 Combat Bots Only 3 | . 3 2 3 Max Kills in Single Turn 1 | . 1 1 1 Gunslinging . | . . . . Exploded . | . . . . Melee 1 | . 1 1 1 Uniques/NPCs Destroyed . | . . . . Combat | -11 -10 -10 -9 -------- Run | Scr Mat Min Mat Damage Taken 1853 | . 279 232 1342 Core 1585 | . 236 190 1159 Absorbed by Shields . | . . . . Redirected to Core 918 | . 140 149 629 Core Remaining (%) 89 | 100 . 78 . Volleys Fired 28 | . 28 . . Largest 2 | . 2 . . Hottest 80 | . 80 . . Shots Fired 56 | . 56 . . Gun 56 | . 56 . . Cannon . | . . . . Launcher . | . . . . Special . | . . . . Kinetic . | . . . . Thermal 56 | . 56 . . Explosive . | . . . . Electromagnetic . | . . . . Robot Hit Streak 12 | . 12 . . Robot Miss Streak 5 | . 5 . . Penetration Max . | . . . . Secondary Targets 1 | . 1 . . Max Gunslinging Chain 1 | . 1 . . Shots Hit Robots 114 | . 45 11 58 Core Hits 47 | . 23 5 19 Critical Kills . | . . . . Critical Parts Destroyed . | . . . . Critical Strikes . | . . . . Melee Attacks 103 | . 16 17 70 Impact . | . . . . Slashing 103 | . 16 17 70 Piercing . | . . . . Sneak Attacks 7 | . 2 1 4 Combat Hostiles . | . . . . Follow-up Attacks . | . . . . Damage Inflicted 2448 | . 734 317 1397 Guns 388 | . 388 . . Cannons . | . . . . Explosions . | . . . . Melee 2060 | . 346 317 1397 Ramming . | . . . . Kinetic . | . . . . Thermal 388 | . 388 . . Explosive . | . . . . Electromagnetic . | . . . . Impact . | . . . . Slashing 2060 | . 346 317 1397 Piercing . | . . . . Highest Corruption . | . . . . Average Corruption . | . . . . Corruption Purged . | . . . . Corruption Blocked . | . . . . Overload Shots . | . . . . Overflow Damage 72 | . 16 15 41 Projectiles . | . . . . Explosions . | . . . . Melee 72 | . 16 15 41 Knockbacks . | . . . . Impact . | . . . . Kinetic . | . . . . Secondary . | . . . . Self-Inflicted Damage . | . . . . Shots . | . . . . Rammed . | . . . . Targets Rammed . | . . . . Kicked . | . . . . Crushed . | . . . . Highest Temperature 129 | . 129 . . Average Temperature 43 | . 43 . . Received Heat Transfer 477 | . 144 . 333 Siege Activations . | . . . . Robots Corrupted . | . . . . Combat Hostiles . | . . . . Parts Fried . | . . . . Impact Corruptions . | . . . . Robots Melted . | . . . . Combat Hostiles . | . . . . Parts Melted 1 | . 1 . . Heat Transferred 875 | . 875 . . Parts Sabotaged . | . . . . Parts Stolen . | . . . . Parts Stripped . | . . . . Power Chain Reactions . | . . . . Missiles Intercepted . | . . . . Alert | -11 -10 -10 -9 ------- Run | Scr Mat Min Mat Peak Influence 547 | . 269 122 547 Initial 62 | . . 62 47 Average 148 | . 116 90 255 Maximum Alert Level 2 | . 1 . 2 Low Security (%) 73 | 100 75 100 46 Level 1 20 | . 24 . 36 Level 2 5 | . . . 17 Level 3 . | . . . . Level 4 . | . . . . Level 5 . | . . . . High Security . | . . . . Max Security . | . . . . Squads Dispatched 4 | . 2 1 1 Investigation . | . . . . Extermination . | . . . . Reinforcement 3 | . 2 . 1 Assault 1 | . . 1 . Garrison . | . . . . Intercept . | . . . . Searches Triggered . | . . . . Construction Impeded . | . . . . Haulers Reinforced . | . . . . Active Scanning Responses . | . . . . Cargo Convoy Interrupts . | . . . . Stealth | -11 -10 -10 -9 --------- Run | Scr Mat Min Mat Distress Signals 2 | . 1 . 1 Communications Jammed . | . . . . Distress Signals . | . . . . Times Spotted 82 | . 22 30 30 Peak Tracking Total 9 | . 3 9 8 Tactical Retreats 11 | . . 6 5 Traps | -11 -10 -10 -9 ------- Run | Scr Mat Min Mat Traps Triggered . | . . . . Indirectly . | . . . . Trap Hack Attempts . | . . . . Triggered . | . . . . Disarmed . | . . . . Reprogrammed . | . . . . Reused . | . . . . Traps Extracted . | . . . . Installed . | . . . . Triggered 1 | . . 1 . Machines | -11 -10 -10 -9 ---------- Run | Scr Mat Min Mat Machines Disabled . | . . . . Max in Single Turn . | . . . . Machines Sabotaged . | . . . . Garrisons Compromised . | . . . . Overloaded Fab Kills . | . . . . Hacking | -11 -10 -10 -9 --------- Run | Scr Mat Min Mat Machines Accessed 7 | . 4 . 3 Terminals 7 | . 4 . 3 Fabricators . | . . . . Repair Stations . | . . . . Recycling Units . | . . . . Scanalyzers . | . . . . Garrison Access . | . . . . Total Hacks 16 | . 9 . 7 Successful 6 | . 3 . 3 Failed 10 | . 6 . 4 Catastrophic 1 | . 1 . . Database Lockouts . | . . . . Manual 15 | . 9 . 6 Terminals 16 | . 9 . 7 Fabricators . | . . . . Repair Stations . | . . . . Recycling Units . | . . . . Scanalyzers . | . . . . Garrison Access . | . . . . Terminal Hacks 1 | . . . 1 Branch Access Points 1 | . . . 1 Fabricator Hacks . | . . . . Repair Station Hacks . | . . . . Recycling Unit Hacks . | . . . . Scanalyzer . | . . . . Garrison Access Hacks . | . . . . Unauthorized Hacks 5 | . 3 . 2 Terminals 5 | . 3 . 2 Assimilate 1 | . . . 1 Botnet 4 | . 3 . 1 Fabricators . | . . . . Repair Stations . | . . . . Recycling Units . | . . . . Scanalyzers . | . . . . Garrison Access . | . . . . Data Cores Recovered . | . . . . Used . | . . . . Hacking Detections 7 | . 4 . 3 Full Trace Events . | . . . . Feedback Events . | . . . . Feedback Blocked . | . . . . Robot Schematics Acquired . | . . . . Robots Built . | . . . . Authchips . | . . . . Time . | . . . . Total Robot Build Rating . | . . . . Part Schematics Acquired . | . . . . Parts Built . | . . . . Authchips . | . . . . Time . | . . . . Total Part Build Rating . | . . . . Parts Repaired . | . . . . Time . | . . . . Parts Recycled . | . . . . Recycled Matter . | . . . . Retrieved Matter . | . . . . Retrieved Components . | . . . . Parts Scanalyzed . | . . . . Part Schematics Acquired . | . . . . Parts Damaged . | . . . . Bothacking | -11 -10 -10 -9 ------------ Run | Scr Mat Min Mat Used RIF Installer . | . . . . Robots Hacked . | . . . . Non-combat . | . . . . Combat . | . . . . Robot Hacks Applied . | . . . . Relay Couplers Released . | . . . . Fabnet Peak Effective % . | . . . . Robots Rewired . | . . . . Allies Hacked . | . . . . Hacks Repelled . | . . . . Allies | -11 -10 -10 -9 -------- Run | Scr Mat Min Mat Total Allies 2 | . . 1 1 Largest Group 1 | . . 1 1 Highest-Rated Group 31 | . . 31 10 Highest-Rated Ally 31 | . . 31 10 Total Orders . | . . . . Ally Attacks 17 | . . 17 . Total Damage 123 | . . 123 . Kills 4 | . . 4 . Allies Corrupted . | . . . . Allies Melted . | . . . . Intel | -11 -10 -10 -9 ------- Run | Scr Mat Min Mat Robot Analysis Total . | . . . . Derelict Logs Recovered 1 | . . 1 . Drone Launches . | . . . . Drone Recoveries . | . . . . Exploration | -11 -10 -10 -9 ------------- Run | Scr Mat Min Mat Turns Passed 1384 | 50 558 354 422 Spaces Moved 1856 | 36 682 743 395 Core 9 | 2 . . 7 Treads . | . . . . Legs 171 | 34 137 . . Wheels . | . . . . Hover . | . . . . Flight 1676 | . 545 743 388 Fastest Speed 34 | 50 37 37 34 Average Speed 44 | 116 53 37 37 Slowest Speed 120 | 120 120 37 100 Overloaded Moves . | . . . . Propulsion Burnouts . | . . . . Robots Hopped 6 | . . 5 1 Cave-ins Triggered . | . . . . Exploration Rate (%) 56 | 2 97 89 39 Regions Visited 3 Branch Regions 1 Pre-discovered Areas . | . . . . Known Exits Taken . | . . . . Unknown Exits Taken 3 | 1 1 1 . Scrap Searched 1 | . . 1 . Spaces Dug . | . . . . Terrain Destroyed . | . . . . Melee . | . . . . Projectile . | . . . . AOE . | . . . . Terrain Rammed . | . . . . Walls Destroyed . | . . . . Machines Disabled . | . . . . Actions | -11 -10 -10 -9 --------- Run | Scr Mat Min Mat Total 2139 | 41 787 783 528 Wait 58 | . 27 20 11 Move 1842 | 35 681 733 393 Hop 5 | . . 4 1 Pick Up 14 | 1 6 1 6 Fast Attach 15 | 5 5 1 4 Attach 2 | . 1 . 1 Detach . | . . . . Swap . | . . . . Drop 16 | . 8 2 6 Fire 28 | . 28 . . Melee 103 | . 16 17 70 Ram . | . . . . Kick . | . . . . Crush . | . . . . Escape Stasis . | . . . . Rewire . | . . . . Trap . | . . . . Miscellaneous 56 | . 15 5 36 Route ------- -11/Scrapyard -10/Materials (discovered 5 exits: *Mat x3 / [*Min x2]) -10/Mines -9/Materials (discovered 3 exits: *Min / *Sto x2) History --------- Turn | Location | Event 14 | -11/Scrapyard | Upgraded with Propulsion slot (x1) 14 | -11/Scrapyard | Upgraded with Utility slot (x1) 14 | -11/Scrapyard | Upgraded with Weapon slot (x1) 14 | -11/Scrapyard | Discovered new exit (range 16) 51 | -11/Scrapyard | Entered Materials 148 | -10/Materials | Discovered new exit (range 3) 176 | -10/Materials | Discovered new exit (range 15) 371 | -10/Materials | Discovered new exit (range 5) 402 | -10/Materials | Discovered new exit (range 16) 519 | -10/Materials | Discovered new exit (range 5) 545 | -10/Materials | Build established: Scavenger-Mutant 609 | -10/Materials | Entered Mines 611 | -10/Mines | Reached level 2 621 | -10/Mines | Assembled infested the area 626 | -10/Mines | Assisted by a Guerilla fighting off Assembled 633 | -10/Mines | Met a Derelict bent on vengeance 743 | -10/Mines | Met a Derelict testing a Signal Generator 843 | -10/Mines | Learned Materials stockpile data 958 | -10/Mines | Discovered new exit (range 3) 963 | -10/Mines | Entered Materials 963 | -9/Materials | Discovered new exit (range 7) 965 | -9/Materials | Reached level 3 992 | -9/Materials | Upgraded with Propulsion slot (x1) 992 | -9/Materials | Upgraded with Utility slot (x1) 1031 | -9/Materials | Core integrity fell below 50% 1046 | -9/Materials | Core integrity fell below 20% 1174 | -9/Materials | Identified exit to Mines 1174 | -9/Materials | Identified exit to Storage 1234 | -9/Materials | Reached level 4 1298 | -9/Materials | Lost 3 parts (1p2n) 1385 | -9/Materials | Self-destructed Last Messages --------------- 01311_ U-05 Engineer builds a Wall. 01313_ K-01 Serf collects debris. 01317_ U-05 Engineer lays Concrete. 01317_ U-05 Engineer builds a Wall. 01320_ K-01 Serf collects debris. 01322_ Sneak attack on K-01 Serf. 01322_ K-01 Serf destroyed. 01323_ K-01 Serf collects debris. 01331_ G-47 Trooper destroyed. 01334_ K-01 Serf collects debris. 01339_ Used Protomatter to restore core integrity (+87, depleted) 01342_ K-01 Serf collects debris. 01351_ Lgt. Ion Engine destroyed. 01370_ Flight Unit destroyed. 01373_ G-34 Mercenary Aluminum Leg ripped off. 01376_ Destroyed Heat Sink. 01379_ G-34 Mercenary destroyed. 01382_ Dropped Protomatter-13. 01382_ Acquired Protomatter-27. 01384_ Mining Claw destroyed. Map ----- +----------------------------------------------------+ | ^ """""""""^ """""""""? ??????????????????? | | %""""" """"" ??????????????????? | | *! ??????????????????? | | ** ?????????????????? | | ?????????????????? | | ????????????????? | | ????????????????? | | ???????=????????? | | = ############# ????????????????????? | | * ##??????????????????????????????????? | | %= ##??????????????????????????????????? | | ! ###############?????????????????????? | | # """ """ """ #????#????????????????? | | # """ """ """ #??? +????????????????? | | # """ """ """ #??? #????????????????? | | !! + #?? +????????????????? | | # /#??! #????????????????? | | % # %[ #?? #????????????????? | | * == ######+######+#? ?????????????????? | | % * #### #??# #? ??????????????????? | | [![ ! #??# ##+#??????????????????? | | ##+###### [%! #??# #??????????????????? | | ## =! ## [! #??# #??????????????????? | | ## [## #??# #??????????##??????? | | ## ### ##### * ##### #??????? | | ## #?# == % @g !!#??? | | = # "" #?# ##### ######## !!#??? | | % # S"" #?# #???# #???????????? !!#??? | | >] + "" #?# #???#+#?????????????????????? | | #######?# #???????????????????????????? | | #???????# #???????????????????????????? | | ##???????# #???????????????????????????? | | #????????+ +???????????????????????????? | | #????????# #???????????????????????????? | | #????????# ????????????????????????????? | | #????????? ????????????????????????????? | | #????????? ????????????????????????????? | | #????????????????????????????????????????? | | #????????????????????????????????????????? | | #????????????????????????????????????????? | | ?????????????????????????????????????????? | | ?????????????????????????????????????????? | | ?????????????????????????????????????????? | | ?????????????????????????????????????????? | | ???????????????????????????????????????????? | | ???????????????????????????????????????????? | | ???????????????????????????????????????????? | | ???????????????????????????????????????????? | | ???????????????????????????????????????????? | | ???????????????????????????????????????????? | +----------------------------------------------------+ Best States ------------- Heat Dissipation 39 Energy Generation 14 Energy Capacity 250 Matter Stores 300 Matter Capacity 300 Sight Range 16 Terrain Scan Density 10 Evasion (%) 63 Targeting Accuracy 5 Item Schematics ----------------- None Robot Schematics ------------------ None Fabricated ------------ Nothing Alien Tech Used ----------------- None Achievements -------------- None Challenges ------------ None RPGLIKE | -11 -10 -10 -9 --------- Run | Scr Mat Min Mat Levels Raised 3 | . . 1 2 XP Earned 8423 | 3000 1380 650 3393 XP Spent 7400 | 3000 . 1400 3000 Upgrades 15 | 6 . 4 5 Propulsion Slot 2 | 1 . . 1 Utility Slot 2 | 1 . . 1 Weapon Slot 1 | 1 . . . Mass Support 1 | . . . 1 Inventory Capacity 3 | 3 . . . Melee Accuracy 6 | . . 4 2 Protomatter Created 374 | . 132 8 234 Integrity Restored 1143 | . 289 74 780 Core 1075 | . 236 59 780 Parts 68 | . 53 15 . Protomatter Decayed 306 | . . 264 42 Game ------ Seed BladeStasisActivator Manual? 0 Play Time 00:20:37 Cumulative 97.8 hours Start 2022.04.20 @ 17:04:46 End 2022.04.20 @ 17:24:23 Sessions 1 Manual Loads 0 Difficulty Rogue Special Mode Winter2019/RPGLIKE Game No. 61 Rogue 22 Adventurer 5 Explorer 34 Win Type - Total 19 Types 10/0/4/4/1/0/0/0/0 Lore% 68 Gallery% 66 Achievement% 71 Wizard Run 0 Options --------- ASCII 0 Keyboard 0 Movement Mouse Keybinds 0 Fullscreen 1 Font 12/Terminus Map View 83x54 Tactical HUD 1 Map Filters NONE Filters NONE Steam 1 RUN: 93a0b0e7-d755-458c-a700-8eb03d26661f